fUST/lending_fUST_20240414
["ID","MTS","AMOUNT","RATE_DAILY","PERIOD"]
[322553395,1713051039490,-155.36142119,0.00046977,4]
[322553396,1713051039499,-362.55538513,0.00046977,4]
[322553397,1713051039509,-185.68184053,0.00046977,4]
[322553398,1713051039520,-156.20487262,0.00046977,4]
[322553399,1713051039529,-301.83980393,0.00046977,4]
[322553400,1713051039538,-156.38945206,0.00046977,4]
[322553401,1713051039548,-241.90686343,0.00046977,4]
[322553402,1713051039557,-8504.32940891,0.00046977,4]
[322553403,1713051039566,-155.61924772,0.00046977,4]
[322553404,1713051039575,-1092.46517485,0.00046977,4]
[322553405,1713051039585,-213.95808583,0.00046978,4]
[322553406,1713051039593,-155.69437185,0.00046978,4]
[322553407,1713051039604,-538.47573593,0.00046979,4]
[322553408,1713051039614,-537.68509393,0.00046979,4]
[322553409,1713051039623,-212.52786944,0.00046979,4]
[322553410,1713051039635,-26015.27394637,0.00046979,4]
[322553411,1713051039644,-303.42336337,0.00046979,4]
[322553412,1713051039654,-156.30294808,0.00046979,4]
[322553413,1713051039663,-298.95072335,0.00046979,4]
[322553414,1713051039673,-367.52809974,0.00046979,4]
[322553415,1713051039682,-242.86748276,0.00046979,4]
[322553416,1713051039693,-162.20248574,0.00046979,4]
[322553417,1713051039791,-156.18040776,0.00046979,4]
[322553418,1713051039801,-1308.15892502,0.00046979,4]
[322553419,1713051039811,-155.38716655,0.00046979,4]
[322553422,1713051039821,-221.63830907,0.00046979,4]
[322553425,1713051039831,-473.43587504,0.00046979,4]
[322553427,1713051039843,-303.95639067,0.00046979,4]
[322553431,1713051039860,-159.67579898,0.00046979,4]
[322553435,1713051039878,-2248.1300057,0.00046979,4]
[322553438,1713051039892,-178.90152231,0.00046979,4]
[322553440,1713051039904,-4032.91201004,0.00046979,4]
[322553443,1713051039915,-1046.06334155,0.00046979,4]
[322553447,1713051039925,-2548.40467265,0.00046979,4]
[322553450,1713051039936,-2542.09040248,0.00046979,4]
[322553452,1713051039945,-278.36597163,0.00046979,4]
[322553454,1713051039955,-2120.63245232,0.00046979,4]
[322553456,1713051039965,-379.20858322,0.00046979,4]
[322553458,1713051039975,-204728.22903699,0.0004698,120]
[322553460,1713051039985,-1158.92348694,0.0004698,4]
[322553462,1713051039995,-20393.57376663,0.00047,4]
[322553464,1713051040005,-172.0,0.00047,90]
[322553466,1713051040015,-150.0,0.00047999,60]
[322553469,1713051040025,-2572.27,0.00048199,7]
[322553470,1713051040035,-1695.44379755,0.00048499,21]
[322553472,1713051040044,-211.8328962,0.00048504,2]
[322553474,1713051040053,-172.0,0.00048904,90]
[322553476,1713051040063,-3374.50106562,0.00049,120]
[322553478,1713051040072,-2000.0,0.00049,68]
[322553480,1713051040082,-2903.585161,0.0004901,68]
[322553482,1713051040091,-1097.0,0.00049246,3]
[322553484,1713051040101,-169.535892,0.00049315,2]
[322553486,1713051040110,-3905.13563,0.00049696,120]
[322553488,1713051040119,-153.0,0.00049874,2]
[322553490,1713051040132,-153.0,0.00049874,2]
[322553492,1713051040140,-153.0,0.00049874,2]
[322553494,1713051040150,-153.0,0.00049874,2]
[322553497,1713051040159,-153.0,0.00049874,2]
[322553500,1713051040169,-153.0,0.00049874,2]
[322553503,1713051040178,-153.0,0.00049874,2]
[322553506,1713051040187,-153.0,0.00049874,2]
[322553509,1713051040197,-202.8348577,0.0004995,2]
[322553512,1713051040206,-206.75820251,0.0005,20]
[322553515,1713051040216,-3234.09818241,0.0005,14]
[322553518,1713051040225,-154.8915759,0.0005,30]
[322553521,1713051040234,-955.53105204,0.0005,60]
[322553524,1713051040243,-151.0,0.0005,120]
[322553527,1713051040253,-1000.0,0.0005,120]
[322553530,1713051040262,-150.0,0.000503,30]
[322553533,1713051040272,-300.0,0.000506,30]
[322553536,1713051040282,-1816.54692595,0.00051097,25]
[322553539,1713051040292,-153.0,0.00052037,2]
[322553542,1713051040301,-153.0,0.00052174,2]
[322553544,1713051040310,-153.0,0.00052174,2]
[322553546,1713051040319,-153.0,0.00052174,2]
[322553548,1713051040328,-153.0,0.00052174,2]
[322553550,1713051040337,-153.0,0.00052174,2]
[322553552,1713051040349,-153.0,0.00052174,2]
[322553554,1713051040359,-153.0,0.00052174,2]
[322553556,1713051040368,-153.0,0.00052174,2]
[322553558,1713051040377,-153.0,0.00052174,2]
[322553560,1713051040390,-153.0,0.00052271,2]
[322553563,1713051040400,-153.0,0.00052271,2]
[322553564,1713051040409,-505.33990801,0.00053,30]
[322553566,1713051040418,-1000.0,0.00053,120]
[322553568,1713051040428,-223.06886562,0.00053186,60]
[322553571,1713051040439,-2413.8275552,0.00053239,120]
[322553572,1713051040450,-151.68590247,0.00053474,60]
[322553574,1713051040460,-151.68590247,0.00053693,60]
[322553577,1713051040469,-154.11492578,0.00053721,60]
[322553578,1713051040478,-337.186781,0.00053879,2]
[322553580,1713051040488,-154.11492578,0.00053932,60]
[322553582,1713051040497,-153.87344272,0.00054024,60]
[322553585,1713051040512,-151.68590247,0.00054044,60]
[322553587,1713051040521,-1536.0,0.0005417,10]
[322553589,1713051040531,-154.11492578,0.00054343,60]
[322553590,1713051040540,-151.68590247,0.00054419,60]
[322553592,1713051040550,-151.68590247,0.00054466,60]
[322553594,1713051040559,-150.0,0.000547,2]
[322553596,1713051040568,-1537.28,0.00054793,7]
[322553598,1713051040576,-1537.28,0.00054793,7]
[322553600,1713051040586,-1537.32,0.00054793,7]
[322553601,1713051040594,-500.0,0.00054794,120]
[322553603,1713051040604,-678.46,0.00054794,120]
[322553605,1713051040613,-500.0,0.00054794,120]
[322553607,1713051040623,-500.0,0.00054794,120]
[322553609,1713051040635,-500.0,0.00054794,120]
[322553611,1713051040644,-500.0,0.00054794,120]
[322553613,1713051040654,-500.0,0.00054794,120]
[322553615,1713051040663,-500.0,0.00054794,120]
[322553617,1713051040673,-500.0,0.00054794,120]
[322553619,1713051040682,-500.0,0.00054794,120]
[322553621,1713051040692,-500.0,0.00054794,120]
[322553623,1713051040701,-502.33733674,0.00054794,120]
[322553624,1713051040711,-500.0,0.00054794,120]
[322553626,1713051040721,-500.0,0.00054794,120]
[322553628,1713051040732,-500.0,0.00054794,120]
[322553630,1713051040742,-501.65200182,0.00054794,120]
[322553632,1713051040751,-625.47,0.00054794,120]
[322553634,1713051040762,-723.19,0.00054794,120]
[322553636,1713051040772,-500.0,0.00054794,7]
[322553638,1713051040781,-500.0,0.00054794,120]
[322553640,1713051040790,-507.65052569,0.00054794,120]
[322553642,1713051040800,-500.0,0.00054794,120]
[322553644,1713051040809,-500.0,0.00054794,120]
[322553646,1713051040818,-500.0,0.00054794,120]
[322553648,1713051040827,-500.0,0.00054794,120]
[322553650,1713051040837,-500.0,0.00054794,120]
[322553652,1713051040846,-500.0,0.00054794,120]
[322553654,1713051040855,-500.0,0.00054794,120]
[322553656,1713051040864,-1067.62953055,0.00054794,120]
[322553659,1713051040873,-500.0,0.00054794,120]
[322553660,1713051040884,-500.0,0.00054794,120]
[322553662,1713051040894,-500.0,0.00054794,120]
[322553664,1713051040903,-500.0,0.00054794,120]
[322553666,1713051040912,-500.0,0.00054794,120]
[322553668,1713051040921,-500.0,0.00054794,120]
[322553670,1713051040930,-500.0,0.00054794,120]
[322553672,1713051040940,-204.14172714,0.00054794,120]
[322553674,1713051040949,-500.0,0.00054794,120]
[322553676,1713051040959,-500.0,0.00054794,120]
[322553678,1713051040968,-500.0,0.00054794,120]
[322553680,1713051040978,-500.0,0.00054794,120]
[322553682,1713051040986,-500.0,0.00054794,120]
[322553684,1713051040995,-500.0,0.00054794,120]
[322553686,1713051041006,-500.0,0.00054794,120]
[322553688,1713051041022,-500.0,0.00054794,120]
[322553690,1713051041031,-500.0,0.00054794,120]
[322553692,1713051041040,-500.0,0.00054794,120]
[322553694,1713051041050,-500.0,0.00054794,120]
[322553696,1713051041059,-500.0,0.00054794,120]
[322553698,1713051041069,-501.40211522,0.00054794,120]
[322553700,1713051041078,-500.0,0.00054794,120]
[322553702,1713051041087,-500.0,0.00054794,120]
[322553704,1713051041097,-500.0,0.00054794,120]
[322553706,1713051041108,-500.0,0.00054794,120]
[322553708,1713051041118,-500.0,0.00054794,120]
[322553710,1713051041130,-517.55625264,0.00054794,120]
[322553712,1713051041140,-500.0,0.00054794,120]
[322553714,1713051041150,-500.0,0.00054794,120]
[322553716,1713051041160,-500.0,0.00054794,120]
[322553718,1713051041171,-500.0,0.00054794,120]
[322553720,1713051041181,-500.0,0.00054794,120]
[322553722,1713051041193,-500.0,0.00054794,120]
[322553724,1713051041202,-500.0,0.00054794,120]
[322553726,1713051041212,-500.0,0.00054794,120]
[322553727,1713051041222,-500.0,0.00054794,120]
[322553730,1713051041232,-500.0,0.00054794,120]
[322553731,1713051041243,-500.0,0.00054794,120]
[322553733,1713051041253,-500.0,0.00054794,120]
[322553736,1713051041264,-500.0,0.00054794,120]
[322553737,1713051041273,-500.0,0.00054794,120]
[322553739,1713051041282,-527.87047722,0.00054794,120]
[322553741,1713051041291,-500.0,0.00054794,60]
[322553743,1713051041300,-500.0,0.00054794,120]
[322553745,1713051041310,-500.0,0.00054794,120]
[322553747,1713051041319,-500.0,0.00054794,120]
[322553749,1713051041329,-500.0,0.00054794,120]
[322553751,1713051041338,-500.0,0.00054794,120]
[322553753,1713051041348,-500.0,0.00054794,120]
[322553755,1713051041357,-500.0,0.00054794,120]
[322553757,1713051041366,-500.0,0.00054794,120]
[322553759,1713051041375,-503.25069039,0.00054794,120]
[322553760,1713051041390,-500.0,0.00054794,120]
[322553762,1713051041400,-500.0,0.00054794,120]
[322553764,1713051041410,-500.0,0.00054794,120]
[322553766,1713051041419,-500.0,0.00054794,120]
[322553768,1713051041428,-500.0,0.00054794,120]
[322553770,1713051041438,-500.35970317,0.00054794,120]
[322553772,1713051041449,-322.12859759,0.00054794,120]
[322553774,1713051041459,-500.0,0.00054794,120]
[322553776,1713051041469,-500.0,0.00054794,120]
[322553778,1713051041479,-500.0,0.00054794,120]
[322553780,1713051041489,-500.0,0.00054794,120]
[322553782,1713051041499,-500.0,0.00054794,120]
[322553784,1713051041509,-500.0,0.00054794,120]
[322553786,1713051041520,-500.0,0.00054794,120]
[322553795,1713051041593,-500.0,0.00054794,120]
[322553797,1713051041614,-500.0,0.00054794,120]
[322553799,1713051041624,-500.0,0.00054794,120]
[322553801,1713051041637,-585.6307535,0.00054794,120]
[322553803,1713051041647,-503.42122321,0.00054794,120]
[322553805,1713051041657,-500.0,0.00054794,120]
[322553807,1713051041667,-500.0,0.00054794,120]
[322553809,1713051041677,-500.0,0.00054794,120]
[322553811,1713051041688,-500.0,0.00054794,120]
[322553813,1713051041698,-565.85430167,0.00054794,120]
[322553815,1713051041709,-500.0,0.00054794,120]
[322553817,1713051041720,-515.23922426,0.00054794,120]
[322553819,1713051041731,-500.0,0.00054794,120]
[322553821,1713051041740,-500.0,0.00054794,120]
[322553823,1713051041750,-474.86905308,0.00054794,120]
[322553825,1713051041760,-500.0,0.00054794,120]
[322553827,1713051041770,-502.01147874,0.00054794,120]
[322553829,1713051041779,-500.0,0.00054794,120]
[322553831,1713051041789,-500.0,0.00054794,120]
[322553833,1713051041799,-1000.0,0.00054794,120]
[322553835,1713051041809,-500.0,0.00054794,120]
[322553837,1713051041819,-488.56291406,0.00054794,120]
[322553839,1713051041828,-177.22362244,0.00054794,120]
[322553841,1713051041838,-500.0,0.00054794,120]
[322553843,1713051041847,-501.99942091,0.00054794,120]
[322553845,1713051041856,-500.0,0.00054794,120]
[322553847,1713051041866,-374.25531236,0.00054794,120]
[322553849,1713051041876,-500.0,0.00054794,120]
[322553850,1713051041888,-500.0,0.00054794,120]
[322553852,1713051041899,-500.0,0.00054794,120]
[322553854,1713051041909,-500.0,0.00054794,120]
[322553856,1713051041918,-500.0,0.00054794,120]
[322553858,1713051041928,-151.0,0.00054794,7]
[322553860,1713051041937,-151.0,0.00054794,7]
[322553862,1713051041947,-500.0,0.00054794,120]
[322553864,1713051041956,-500.0,0.00054794,120]
[322553866,1713051041967,-500.0,0.00054794,120]
[322553869,1713051041979,-229.91181598,0.00054794,120]
[322553870,1713051041992,-300.0,0.00054794,7]
[322553872,1713051042003,-500.0,0.00054794,120]
[322553874,1713051042013,-500.0,0.00054794,120]
[322553876,1713051042023,-500.0,0.00054794,120]
[322553878,1713051042034,-500.0,0.00054794,120]
[322553881,1713051042043,-500.0,0.00054794,120]
[322553882,1713051042053,-500.0,0.00054794,120]
[322553884,1713051042063,-500.0,0.00054794,120]
[322553886,1713051042073,-500.0,0.00054794,120]
[322553887,1713051042083,-502.35220558,0.00054794,120]
[322553890,1713051042095,-500.0,0.00054794,120]
[322553891,1713051042106,-500.70333119,0.00054794,120]
[322553894,1713051042116,-500.0,0.00054794,120]
[322553896,1713051042127,-500.0,0.00054794,120]
[322553898,1713051042140,-500.0,0.00054794,120]
[322553899,1713051042149,-500.0,0.00054794,120]
[322553902,1713051042159,-189.90271438,0.00054794,120]
[322553903,1713051042169,-500.0,0.00054794,120]
[322553906,1713051042179,-500.0,0.00054794,120]
[322553907,1713051042190,-500.0,0.00054794,120]
[322553910,1713051042201,-500.0,0.00054794,120]
[322553912,1713051042212,-502.83852805,0.00054794,120]
[322553914,1713051042222,-500.0,0.00054794,120]
[322553916,1713051042234,-508.00749955,0.00054794,120]
[322553918,1713051042244,-500.0,0.00054794,120]
[322553920,1713051042254,-207.40801537,0.00054794,120]
[322553921,1713051042264,-500.0,0.00054794,120]
[322553924,1713051042275,-500.0,0.00054794,14]
[322553925,1713051042285,-500.0,0.00054794,120]
[322553927,1713051042295,-500.0,0.00054794,120]
[322553929,1713051042307,-500.0,0.00054794,120]
[322553931,1713051042318,-1500.39,0.00054794,120]
[322553934,1713051042328,-500.0,0.00054794,120]
[322553935,1713051042337,-239.03280584,0.00054794,120]
[322553937,1713051042347,-500.0,0.00054794,7]
[322553939,1713051042356,-500.0,0.00054794,120]
[322553941,1713051042365,-500.0,0.00054794,120]
[322553943,1713051042375,-500.0,0.00054794,120]
[322553945,1713051042389,-500.0,0.00054794,120]
[322553947,1713051042400,-500.0,0.00054794,120]
[322553949,1713051042409,-500.0,0.00054794,120]
[322553951,1713051042419,-500.0,0.00054794,120]
[322553953,1713051042429,-500.0,0.00054794,120]
[322553955,1713051042438,-500.0,0.00054794,120]
[322553957,1713051042451,-500.0,0.00054794,120]
[322553959,1713051042461,-500.0,0.00054794,120]
[322553961,1713051042470,-500.0,0.00054794,120]
[322553963,1713051042480,-500.0,0.00054794,120]
[322553965,1713051042490,-500.0,0.00054794,120]
[322553967,1713051042499,-500.0,0.00054794,120]
[322553969,1713051042510,-536.56095693,0.00054794,120]
[322553971,1713051042522,-176.94,0.00054794,7]
[322553973,1713051042531,-176.94,0.00054794,7]
[322553975,1713051042541,-500.0,0.00054794,120]
[322553977,1713051042551,-500.0,0.00054794,120]
[322553979,1713051042562,-500.0,0.00054794,120]
[322553981,1713051042572,-176.94,0.00054794,7]
[322553982,1713051042582,-176.94,0.00054794,7]
[322553984,1713051042592,-500.0,0.00054794,120]
[322553986,1713051042601,-500.0,0.00054794,120]
[322553988,1713051042613,-500.0,0.00054794,120]
[322553990,1713051042623,-500.0,0.00054794,120]
[322553992,1713051042636,-500.0,0.00054794,120]
[322553994,1713051042646,-500.0,0.00054794,120]
[322553996,1713051042656,-500.0,0.00054794,120]
[322553998,1713051042665,-500.0,0.00054794,120]
[322554000,1713051042675,-500.0,0.00054794,120]
[322554002,1713051042684,-500.0,0.00054794,120]
[322554004,1713051042693,-500.0,0.00054794,120]
[322554006,1713051042704,-500.0,0.00054794,120]
[322554008,1713051042715,-500.0,0.00054794,120]
[322554010,1713051042725,-500.0,0.00054794,120]
[322554012,1713051042735,-500.0,0.00054794,120]
[322554014,1713051042746,-500.0,0.00054794,120]
[322554016,1713051042755,-500.0,0.00054794,120]
[322554018,1713051042764,-500.0,0.00054794,120]
[322554020,1713051042774,-500.0,0.00054794,120]
[322554022,1713051042783,-219.28494068,0.00054794,120]
[322554024,1713051042792,-500.0,0.00054794,120]
[322554026,1713051042802,-227.86940097,0.00054794,120]
[322554028,1713051042812,-508.3973965,0.00054794,120]
[322554029,1713051042822,-500.0,0.00054794,120]
[322554031,1713051042832,-500.0,0.00054794,120]
[322554033,1713051042841,-1238.6,0.00054794,120]
[322554035,1713051042851,-500.0,0.00054794,120]
[322554037,1713051042860,-568.57,0.00054794,120]
[322554039,1713051042870,-3428.69,0.00054794,120]
[322554041,1713051042883,-500.0,0.00054794,120]
[322554043,1713051042893,-1460.84,0.00054794,120]
[322554045,1713051042902,-500.0,0.00054794,120]
[322554047,1713051042912,-417.69517336,0.00054794,120]
[322554049,1713051042920,-500.0,0.00054794,120]
[322554051,1713051042930,-171.95890257,0.00054794,120]
[322554053,1713051042939,-250.52552832,0.00054794,120]
[322554055,1713051042948,-509.38981987,0.00054794,120]
[322554057,1713051042957,-383.59741185,0.00054794,120]
[322554058,1713051042966,-500.0,0.00054794,120]
[322554060,1713051042977,-500.0,0.00054794,120]
[322554062,1713051042986,-1763.9,0.00054794,120]
[322554064,1713051042996,-500.0,0.00054794,120]
[322554066,1713051043005,-500.0,0.00054794,120]
[322554068,1713051043015,-151.0,0.00054794,7]
[322554070,1713051043024,-151.0,0.00054794,7]
[322554072,1713051043034,-500.0,0.00054794,120]
[322554074,1713051043043,-500.0,0.00054794,120]
[322554076,1713051043053,-510.06,0.00054794,120]
[322554078,1713051043062,-151.0,0.00054794,7]
[322554080,1713051043071,-151.0,0.00054794,7]
[322554082,1713051043080,-386.37300741,0.00054794,2]
[322554084,1713051043091,-500.0,0.00054794,120]
[322554085,1713051043101,-278.57701195,0.00054794,120]
[322554086,1713051043110,-500.0,0.00054794,120]
[322554087,1713051043120,-500.0,0.00054794,120]
[322554088,1713051043130,-500.0,0.00054794,120]
[322554089,1713051043139,-238.61278251,0.00054794,120]
[322554090,1713051043148,-1237.861607,0.00054794,7]
[322554091,1713051043158,-160.032477,0.00054794,7]
[322554093,1713051043167,-1237.861607,0.00054794,7]
[322554095,1713051043177,-500.0,0.00054794,120]
[322554096,1713051043186,-500.0,0.00054794,120]
[322554098,1713051043195,-1237.861607,0.00054794,7]
[322554100,1713051043204,-1237.861607,0.00054794,7]
[322554102,1713051043214,-500.0,0.00054794,120]
[322554104,1713051043223,-500.0,0.00054794,120]
[322554119,1713051043305,-500.87977262,0.00054794,120]
[322554120,1713051043316,-652.34,0.00054794,120]
[322554125,1713051043326,-153.39951599,0.00054794,120]
[322554129,1713051043335,-500.0,0.00054794,120]
[322554133,1713051043345,-305.22099553,0.00054794,120]
[322554140,1713051043355,-500.0,0.00054794,120]
[322554146,1713051043364,-500.0,0.00054794,120]
[322554152,1713051043374,-501.40871073,0.00054794,120]
[322554156,1713051043386,-500.0,0.00054794,120]
[322554160,1713051043396,-505.09467964,0.00054794,120]
[322554163,1713051043406,-500.0,0.00054794,120]
[322554167,1713051043415,-858.21,0.00054794,120]
[322554171,1713051043425,-500.0,0.00054794,120]
[322554176,1713051043435,-500.0,0.00054794,120]
[322554179,1713051043444,-620.05184602,0.00054794,120]
[322554183,1713051043453,-500.0,0.00054794,120]
[322554187,1713051043462,-500.0,0.00054794,120]
[322554191,1713051043472,-500.0,0.00054794,120]
[322554194,1713051043481,-500.0,0.00054794,120]
[322554196,1713051043491,-573.36029087,0.00054794,120]
[322554199,1713051043500,-500.0,0.00054794,120]
[322554201,1713051043511,-500.0,0.00054794,120]
[322554203,1713051043525,-253.51827754,0.00054794,120]
[322554205,1713051043534,-500.0,0.00054794,120]
[322554207,1713051043544,-500.0,0.00054794,120]
[322554209,1713051043554,-500.0,0.00054794,120]
[322554211,1713051043563,-502.24177056,0.00054794,120]
[322554213,1713051043572,-500.0,0.00054794,120]
[322554215,1713051043581,-420.76768165,0.00054794,120]
[322554217,1713051043590,-500.0,0.00054794,120]
[322554219,1713051043601,-1073.52,0.00054794,120]
[322554221,1713051043611,-500.0,0.00054794,120]
[322554223,1713051043621,-500.0,0.00054794,120]
[322554225,1713051043632,-500.0,0.00054794,120]
[322554227,1713051043641,-500.0,0.00054794,120]
[322554229,1713051043650,-500.0,0.00054794,120]
[322554231,1713051043659,-398.49582361,0.00054794,120]
[322554233,1713051043669,-500.0,0.00054794,120]
[322554234,1713051043677,-500.0,0.00054794,120]
[322554236,1713051043688,-171.86384382,0.00054794,120]
[322554238,1713051043697,-500.0,0.00054794,120]
[322554240,1713051043707,-500.0,0.00054794,120]
[322554242,1713051043717,-298.32644037,0.00054794,120]
[322554244,1713051043727,-500.0,0.00054794,120]
[322554246,1713051043736,-500.0,0.00054794,20]
[322554248,1713051043745,-500.0,0.00054794,120]
[322554250,1713051043755,-500.0,0.00054794,120]
[322554252,1713051043765,-684.31,0.00054794,120]
[322554254,1713051043774,-500.0,0.00054794,120]
[322554256,1713051043784,-500.0,0.00054794,120]
[322554259,1713051043795,-500.0,0.00054794,120]
[322554260,1713051043805,-1563.69,0.00054794,120]
[322554262,1713051043814,-500.0,0.00054794,120]
[322554264,1713051043825,-500.0,0.00054794,120]
[322554266,1713051043835,-500.0,0.00054794,120]
[322554268,1713051043844,-500.0,0.00054794,120]
[322554271,1713051043853,-500.0,0.00054794,120]
[322554272,1713051043863,-342.39120222,0.00054794,120]
[322554274,1713051043873,-866.48,0.00054794,120]
[322554276,1713051043885,-500.0,0.00054794,120]
[322554278,1713051043894,-500.0,0.00054794,120]
[322554280,1713051043903,-500.0,0.00054794,120]
[322554282,1713051043913,-500.0,0.00054794,120]
[322554285,1713051043924,-500.0,0.00054794,120]
[322554286,1713051043933,-360.7703821,0.00054794,120]
[322554288,1713051043942,-424.294136,0.00054794,7]
[322554290,1713051043952,-500.0,0.00054794,120]
[322554293,1713051043962,-424.294136,0.00054794,7]
[322554294,1713051043972,-500.0,0.00054794,120]
[322554297,1713051043982,-500.0,0.00054794,120]
[322554299,1713051043991,-500.0,0.00054794,120]
[322554302,1713051044001,-500.0,0.00054794,120]
[322554305,1713051044010,-500.0,0.00054794,120]
[322554308,1713051044019,-424.294136,0.00054794,7]
[322554310,1713051044028,-424.294136,0.00054794,7]
[322554312,1713051044038,-500.00025,0.00054794,120]
[322554314,1713051044049,-500.0,0.00054794,120]
[322554316,1713051044058,-500.33287522,0.00054794,120]
[322554320,1713051044067,-500.0,0.00054794,120]
[322554323,1713051044076,-500.0,0.00054794,120]
[322554325,1713051044086,-500.0,0.00054794,120]
[322554328,1713051044096,-500.0,0.00054794,120]
[322554331,1713051044105,-500.0,0.00054794,120]
[322554333,1713051044114,-500.0,0.00054794,120]
[322554335,1713051044124,-500.0,0.00054794,120]
[322554336,1713051044137,-1038.905488,0.00054794,7]
[322554337,1713051044146,-1038.905488,0.00054794,7]
[322554338,1713051044156,-1038.905488,0.00054794,7]
[322554339,1713051044164,-1038.905488,0.00054794,7]
[322554340,1713051044173,-500.0,0.00054794,120]
[322554341,1713051044183,-500.0,0.00054794,120]
[322554343,1713051044192,-500.0,0.00054794,120]
[322554344,1713051044202,-500.0,0.00054794,120]
[322554345,1713051044211,-500.0,0.00054794,120]
[322554346,1713051044220,-500.0,0.00054794,120]
[322554347,1713051044229,-500.0,0.00054794,120]
[322554348,1713051044238,-500.0,0.00054794,120]
[322554349,1713051044247,-500.0,0.00054794,120]
[322554350,1713051044256,-500.0,0.00054794,120]
[322554351,1713051044265,-500.0,0.00054794,120]
[322554352,1713051044274,-500.0,0.00054794,120]
[322554353,1713051044283,-500.0,0.00054794,120]
[322554354,1713051044292,-540.678557,0.00054794,7]
[322554355,1713051044301,-540.678557,0.00054794,7]
[322554356,1713051044310,-500.0,0.00054794,120]
[322554357,1713051044319,-500.0,0.00054794,120]
[322554358,1713051044328,-500.0,0.00054794,120]
[322554359,1713051044337,-540.678557,0.00054794,7]
[322554360,1713051044346,-540.678557,0.00054794,7]
[322554361,1713051044356,-2084.132245,0.00054794,7]
[322554362,1713051044365,-2084.132245,0.00054794,7]
[322554363,1713051044375,-500.0,0.00054794,120]
[322554364,1713051044387,-2084.132245,0.00054794,7]
[322554365,1713051044397,-2084.132245,0.00054794,7]
[322554366,1713051044406,-500.0,0.00054794,120]
[322554367,1713051044415,-508.00708882,0.00054794,120]
[322554368,1713051044424,-520.85823513,0.00054794,120]
[322554369,1713051044433,-500.0,0.00054794,120]
[322554370,1713051044443,-500.0,0.00054794,120]
[322554371,1713051044452,-506.97942775,0.00054794,120]
[322554372,1713051044461,-500.0,0.00054794,120]
[322554373,1713051044470,-151.0,0.00054794,120]
[322554374,1713051044479,-500.0,0.00054794,120]
[322554375,1713051044488,-500.78951343,0.00054794,120]
[322554376,1713051044497,-500.0,0.00054794,120]
[322554377,1713051044506,-500.0,0.00054794,120]
[322554378,1713051044516,-500.0,0.00054794,120]
[322554379,1713051044528,-500.0,0.00054794,120]
[322554380,1713051044537,-151.0,0.00054794,7]
[322554381,1713051044547,-500.0,0.00054794,120]
[322554382,1713051044556,-151.0,0.00054794,7]
[322554383,1713051044565,-500.0,0.00054794,120]
[322554384,1713051044574,-500.0,0.00054794,120]
[322554385,1713051044583,-500.0,0.00054794,120]
[322554386,1713051044593,-500.0,0.00054794,120]
[322554387,1713051044604,-500.0,0.00054794,120]
[322554388,1713051044613,-500.0,0.00054794,120]
[322554389,1713051044622,-500.0,0.00054794,120]
[322554390,1713051044633,-151.0,0.00054794,7]
[322554391,1713051044642,-151.0,0.00054794,7]
[322554392,1713051044652,-501.16823285,0.00054794,120]